bitfinex-derivatives/quotes_ETHF0:USTF0_20241017
["timestamp","ask_amount","ask_price","bid_price","bid_amount"]
[1729203091243,4.43632155,2609.5,2609.4,0.38328]
[1729203092954,4.43632155,2609.5,2609.4,1.76328]
[1729203095947,3.05632155,2609.5,2609.4,1.76328]
[1729203097347,4.43632155,2609.5,2609.4,0.38328]
[1729203098154,4.43632155,2609.5,2609.4,1.76328]
[1729203098949,1.92737995,2609.5,2609.4,1.76328]
[1729203099153,1.38,2609.5,2609.4,1.76328]
[1729203099458,0.54737995,2609.6,2609.5,0.38327]
[1729203099759,1.92737995,2609.6,2609.5,2.15467]
[1729203100655,1.92737995,2609.6,2609.5,0.93278665]
[1729203100858,1.92737995,2609.6,2609.5,1.31605665]
[1729203101052,1.92737995,2609.6,2609.5,0.38327]
[1729203106251,1.38,2609.6,2609.5,0.38327]
[1729203108661,1.92737995,2609.6,2609.5,0.38327]
[1729203109953,1.38,2609.6,2609.5,0.38327]
[1729203110555,0.54737995,2609.7,2609.6,0.38325]
[1729203110753,0.54737995,2609.7,2609.6,0.78405]
[1729203111357,3.56288641,2609.7,2609.6,0.78405]
[1729203113059,0.54737995,2609.7,2609.6,0.78405]
[1729203113259,2.34947995,2609.8,2609.7,0.38324]
[1729203113461,5.36498641,2609.8,2609.7,0.38324]
[1729203113654,5.36498641,2609.8,2609.7,0.80704]
[1729203113859,4.94288641,2609.8,2609.7,0.80704]
[1729203114562,1.92737995,2609.8,2609.7,0.80704]
[1729203118860,0.54737995,2609.8,2609.7,2.18704]
[1729203119066,3.01550646,2610.4,2609.9,0.95803]
[1729203119266,3.01550646,2610.7,2610.3,5.9678]
[1729203119471,1.38,2610.9,2610.7,0.38308]
[1729203119665,2.6091,2610.8,2610.4,0.805]
[1729203119969,2.6091,2610.8,2610.4,1.18812]
[1729203119970,1.38,2610.5,2610.4,1.18812]
[1729203120164,1.38,2610.5,2610.2,3.2078]
[1729203120379,1.2135,2610.4,2610.2,3.59096]
[1729203120579,2.5935,2610.4,2610.3,0.38315]
[1729203121366,0.8234,2610.4,2610.3,0.38315]
[1729203121571,2.2034,2610.4,2610.3,0.38315]
[1729203125986,2.2034,2610.4,2610.1,0.38317]
[1729203125987,0.38316,2610.3,2610.1,0.38317]
[1729203126185,1.38,2610.2,2610.1,0.38318]
[1729203126486,1.38,2610.2,2609.9,3.6102]
[1729203126684,1.38,2610.0,2609.9,0.38321]
[1729203127184,2.1927,2610.0,2609.9,0.38321]
[1729203127379,2.57589,2610.0,2609.9,0.38321]
[1729203127584,2.1927,2610.0,2609.9,0.38321]
[1729203128382,2.57589,2610.0,2609.8,0.3872]
[1729203128582,1.38,2609.9,2609.6,3.2078]
[1729203128884,0.38325,2609.6,2609.1,0.38332]
[1729203129085,1.38,2609.2,2608.9,1.8018]
[1729203129280,1.38,2609.2,2609.1,0.38331]
[1729203129485,1.56457,2609.5,2609.3,0.3833]
[1729203129486,1.93203956,2609.4,2609.3,0.3833]
[1729203129791,1.38,2609.4,2609.3,0.3833]
[1729203130796,1.38,2609.4,2608.9,0.4218]
[1729203131095,1.76335,2609.0,2608.8,0.38336]
[1729203131282,2.1831,2608.9,2608.8,0.38336]
[1729203131682,2.1831,2608.9,2608.4,4.4823]
[1729203131892,1.18646,2608.9,2608.7,0.38337]
[1729203132091,0.8031,2608.9,2608.6,1.38]
[1729203132394,1.38,2608.7,2608.6,1.7634]
[1729203132794,0.38341,2608.6,2608.5,0.38341]
[1729203132992,1.38,2608.6,2608.5,0.38341]
[1729203133181,0.97073956,2608.8,2608.5,1.38]
[1729203133381,1.38,2608.8,2608.6,1.38]
[1729203133693,1.38,2608.8,2608.7,0.38338]
[1729203135497,0.96743956,2608.9,2608.8,0.38337]
[1729203135681,1.93203956,2609.0,2608.9,0.38336]
[1729203135886,0.55203956,2609.0,2608.9,0.38336]
[1729203136789,4.39550646,2609.6,2608.9,0.38336]
[1729203136790,1.38,2609.5,2609.4,0.38327]
[1729203137191,1.38,2609.5,2609.4,1.76327]
[1729203137499,1.38,2609.5,2609.4,0.38327]
[1729203139700,0.3985,2609.6,2609.5,0.38327]
[1729203139701,1.38,2609.6,2609.5,0.38327]
[1729203139899,3.76721,2609.9,2609.7,0.38323]
[1729203140097,3.384,2609.9,2609.8,0.38322]
[1729203140297,0.94483729,2609.9,2609.8,0.38322]
[1729203140601,0.394,2609.9,2609.8,0.38322]
[1729203141487,0.394,2609.9,2609.4,0.95819]
[1729203141488,6.1978,2610.1,2609.5,0.95814]
[1729203141889,6.1978,2610.1,2610.0,0.38319]
[1729203142098,6.74854933,2610.1,2610.0,0.38319]
[1729203142297,0.38322,2609.9,2609.7,0.38324]
[1729203142594,3.37322,2609.8,2609.6,0.38325]
[1729203143303,2.99,2609.8,2609.4,3.2078]
[1729203143500,2.99,2609.8,2609.7,0.38324]
[1729203143800,3.37323,2609.8,2609.6,0.38325]
[1729203144588,0.38324,2609.7,2609.6,0.38324]
[1729203145600,3.4137,2609.8,2609.7,0.38324]
[1729203145601,3.79693,2609.8,2609.7,0.38324]
[1729203146091,3.4137,2609.8,2609.7,0.38324]
[1729203146296,3.9645411,2609.8,2609.7,0.38324]
[1729203146800,4.3477611,2609.8,2609.7,0.38324]
[1729203147000,3.9645411,2609.8,2609.7,0.38324]
[1729203149602,4.3477611,2609.8,2609.7,0.38324]
[1729203150595,3.9645411,2609.8,2609.7,0.38324]
[1729203155195,4.3477611,2609.8,2609.7,0.38324]
[1729203155597,3.9645411,2609.8,2609.7,0.38324]
[1729203157201,3.9645411,2609.8,2609.2,0.8178]
[1729203157403,2.99,2609.3,2609.2,1.20111]
[1729203157594,2.99,2609.3,2609.1,3.2078]
[1729203157595,0.38331,2609.2,2609.1,3.2078]
[1729203157794,0.38331,2609.2,2609.1,3.59113]
[1729203157795,1.21541,2609.2,2609.1,3.59113]
[1729203158909,1.21541,2609.2,2609.1,3.2078]
[1729203159794,1.21541,2609.2,2609.1,3.59113]
[1729203160500,1.21541,2609.2,2609.1,3.2078]
[1729203161004,0.38333,2609.1,2609.0,0.38333]
[1729203161305,3.37333,2609.1,2609.0,0.38333]
[1729203161502,3.92428323,2609.1,2609.0,0.38333]
[1729203161804,0.38337,2608.8,2608.7,1.91666347]
[1729203162002,3.59117,2608.8,2608.7,1.91666347]
[1729203162202,4.14212323,2608.8,2608.7,1.91666347]
[1729203162402,4.96792323,2608.8,2608.7,1.91666347]
[1729203163105,14.80152323,2608.8,2608.7,1.91666347]
[1729203164300,17.79152323,2608.8,2608.7,1.91666347]
[1729203168213,18.90352323,2608.8,2608.7,1.91666347]
[1729203168520,17.79123346,2608.8,2608.7,1.91666347]
[1729203168722,18.35257,2608.8,2608.7,1.91666347]
[1729203169021,6.1978,2608.8,2608.7,2.30005347]
[1729203177507,2.99,2608.8,2608.7,2.30005347]
[1729203179423,3.37337,2608.8,2608.7,1.91666347]
[1729203179615,4.17467,2608.8,2608.7,2.30005347]
[1729203179816,4.17467,2608.8,2608.7,1.91666347]
[1729203180514,4.17467,2608.8,2608.7,2.30005347]
[1729203180709,4.17467,2608.8,2608.7,1.91666347]
[1729203180912,4.17467,2608.8,2608.7,2.30005347]
[1729203181125,4.17467,2608.8,2608.7,1.91666347]
[1729203181923,4.17467,2608.8,2608.7,2.30005347]
[1729203182619,4.17467,2608.8,2608.7,1.91666347]
[1729203183217,4.17467,2608.8,2608.7,2.30005347]
[1729203183618,4.34226032,2608.8,2608.7,2.30005347]
[1729203183820,2.99,2608.8,2608.7,2.30005347]
[1729203185125,2.99,2609.0,2608.9,0.38336]
[1729203185821,2.99,2609.0,2608.9,0.80386]
[1729203186028,2.99,2609.3,2609.2,0.38331]
[1729203186322,3.54076977,2609.3,2609.2,0.38331]
[1729203186530,3.54079295,2609.3,2609.2,0.38331]
[1729203186830,3.5408057,2609.3,2609.2,0.38331]
[1729203191736,2.99,2609.3,2609.2,0.38331]
[1729203192030,4.041,2609.5,2609.2,3.8328]
[1729203192227,4.041,2609.5,2609.4,0.38328]
[1729203192734,4.041,2609.5,2609.4,0.80588]
[1729203193931,2.99,2609.5,2609.4,0.80588]
[1729203197725,2.99,2609.5,2609.4,0.38328]
[1729203198031,3.54121923,2609.5,2609.4,0.38328]
[1729203198233,3.54125765,2609.5,2609.4,0.38328]
[1729203200036,1.93125765,2609.5,2609.4,0.38328]
[1729203210241,0.55125765,2609.5,2609.4,0.38328]
[1729203210442,2.38880765,2609.7,2609.6,0.38325]
[1729203211640,4.76555765,2609.7,2609.6,0.38325]
[1729203211839,5.14879765,2609.7,2609.6,0.38325]
[1729203212037,0.38326,2609.6,2609.5,0.38326]
[1729203212238,2.31451765,2609.6,2609.5,0.38326]
[1729203214640,11.95243813,2609.6,2608.9,3.2078]
[1729203214950,1.38,2609.0,2608.9,0.38336]
[1729203215547,2.71035765,2609.0,2608.9,0.38336]
[1729203215940,1.93125765,2609.0,2608.9,0.38336]
[1729203216143,1.38,2609.0,2608.9,0.78116]
[1729203216845,1.38,2609.0,2608.9,4.61396]
[1729203218251,1.38,2609.0,2608.9,0.78116]
[1729203218637,1.60297405,2609.3,2608.9,0.78116]
[1729203218842,1.051,2609.3,2609.2,0.38331]
[1729203219040,2.431,2609.3,2609.2,0.38331]
[1729203219541,2.98297405,2609.3,2609.2,0.38331]
[1729203222049,2.431,2609.3,2609.2,0.38331]
[1729203223948,1.38,2609.4,2609.3,0.3833]
[1729203226552,1.38,2609.4,2609.0,4.57126]
[1729203226553,0.3833,2609.3,2609.2,0.3833]
[1729203226755,1.7633,2609.3,2609.2,0.3833]
[1729203227055,1.38,2609.3,2609.2,0.3833]
[1729203227449,1.93197405,2609.3,2609.2,0.3833]
[1729203228043,0.55197405,2609.3,2609.2,0.3833]
[1729203228356,1.93197405,2609.3,2609.2,4.2161]
[1729203228552,1.38,2609.3,2609.2,0.3833]
[1729203228758,1.38,2609.3,2609.2,4.2161]
[1729203228948,1.38,2609.3,2609.2,0.3833]
[1729203229155,1.38,2609.3,2609.2,4.2161]
[1729203229462,1.38,2609.3,2609.2,0.3833]
[1729203231160,0.55197405,2609.4,2609.3,0.3833]
[1729203231360,1.93197405,2609.4,2609.3,0.3833]
[1729203232552,1.38,2609.4,2609.3,0.3833]
[1729203236861,1.38,2609.4,2609.3,4.2153]
[1729203237258,0.55197405,2609.7,2609.3,5.212]
[1729203237565,0.55197405,2609.7,2609.6,0.38325]
[1729203237761,0.55197405,2609.7,2609.6,0.18650585]
[1729203237959,1.37967405,2609.8,2609.7,0.38324]
[1729203238357,1.37967405,2609.8,2609.5,0.3931]
[1729203238358,1.37967405,2609.8,2609.6,0.3901]
[1729203238561,0.38326,2609.6,2609.5,0.38326]
[1729203238960,3.14326,2609.6,2609.5,0.38326]
[1729203239157,3.31197405,2609.6,2609.5,0.38326]
[1729203240754,3.69522405,2609.6,2609.5,0.38326]
[1729203241356,3.31197405,2609.6,2609.5,0.38326]
[1729203242867,3.69522405,2609.6,2609.5,0.38326]
[1729203243069,3.31197405,2609.6,2609.5,0.38326]
[1729203244768,3.69522405,2609.6,2609.5,0.38326]
[1729203245163,3.31197405,2609.6,2609.5,0.38326]
[1729203247765,4.33997405,2609.6,2609.5,0.38326]
[1729203248274,3.31197405,2609.6,2609.5,0.38326]
[1729203251368,3.31197405,2609.6,2609.5,0.18809148]
[1729203251966,6.32228831,2609.6,2609.5,0.18809148]
[1729203252167,3.31197405,2609.6,2609.5,0.18809148]
[1729203252368,1.93197405,2609.6,2609.5,0.18809148]
[1729203252868,3.31197405,2609.6,2609.5,0.18809148]
[1729203253068,1.93197405,2609.6,2609.5,0.18809148]
[1729203254469,3.31197405,2609.6,2609.5,0.18809148]
[1729203254874,1.93197405,2609.6,2609.5,0.18809148]
[1729203255175,3.31197405,2609.6,2609.5,0.18809148]
[1729203255871,0.55197405,2609.6,2609.5,10.02009148]
[1729203256076,1.38,2609.6,2609.5,4.02009148]
[1729203256478,0.55197405,2609.8,2609.7,0.38324]
[1729203256664,1.93197405,2609.8,2609.7,0.38324]
[1729203259977,1.38,2609.8,2609.7,0.38324]
[1729203260180,1.93197405,2609.8,2609.7,0.38324]
[1729203262985,1.38,2609.8,2609.7,0.38324]
[1729203263185,1.93197405,2609.8,2609.7,0.38324]
[1729203264085,1.38,2609.8,2609.7,0.38324]
[1729203264285,1.93197405,2609.8,2609.7,0.38324]
[1729203267284,0.55197405,2609.8,2609.7,0.38324]
[1729203267486,1.93197405,2609.8,2609.7,0.38324]
[1729203272389,1.38,2609.8,2609.7,0.38324]
[1729203272581,1.93197405,2609.8,2609.7,0.38324]
[1729203279087,1.93197405,2609.8,2609.6,0.38324]
[1729203279088,0.38325,2609.7,2609.6,0.38324]
[1729203279285,2.57715,2609.7,2609.6,0.38324]
[1729203279487,2.74587405,2609.7,2609.6,0.38324]
[1729203279886,3.12911405,2609.7,2609.6,0.38324]
[1729203280895,2.74587405,2609.7,2609.6,0.38324]
[1729203281089,2.1939,2609.7,2609.6,0.38324]
[1729203281483,3.1539,2609.7,2609.6,0.38324]
[1729203281688,2.32587405,2609.7,2609.6,0.38324]
[1729203281899,0.55197405,2609.8,2609.7,0.38324]
[1729203282088,1.93197405,2609.8,2609.7,0.38324]
[1729203283796,2.31519405,2609.8,2609.7,0.38324]
[1729203283997,2.31519405,2609.8,2609.4,1.34698]
[1729203283998,3.31197405,2609.8,2609.3,4.63354735]
[1729203284184,1.7633,2609.4,2609.3,0.3833]
[1729203284390,1.76329,2609.4,2609.2,0.3833]
[1729203284591,2.6119,2609.3,2609.2,0.3833]
[1729203284897,5.12549162,2609.3,2609.2,0.3833]
[1729203285089,5.67746567,2609.3,2609.2,0.3833]
[1729203285890,4.44556567,2609.3,2609.2,0.3833]
[1729203286096,0.55197405,2609.3,2609.2,0.3833]
[1729203286292,1.93197405,2609.3,2609.2,1.1994]
[1729203292997,0.55197405,2609.3,2609.2,2.5794]
[1729203293195,4.44556567,2609.4,2609.3,0.3833]
[1729203293700,1.93197405,2609.4,2609.3,0.3833]
[1729203294907,1.38,2609.4,2609.3,0.3833]
[1729203295599,1.93197405,2609.4,2609.3,0.3833]
[1729203295996,1.39457405,2609.5,2609.4,0.38328]
[1729203296193,2.77457405,2609.5,2609.4,0.38328]
[1729203296799,0.55197405,2609.5,2609.4,1.76328]
[1729203296994,0.55197405,2609.5,2609.4,11.59528]
[1729203297208,1.92388381,2609.7,2609.6,0.38325]
[1729203297500,1.38,2609.7,2609.6,0.38325]
[1729203297902,1.38,2609.7,2609.6,5.02555]
[1729203298506,1.38,2609.7,2609.6,1.19355]
[1729203298698,1.38,2609.7,2609.6,5.02555]
[1729203299095,1.38,2609.7,2609.6,1.19355]
[1729203300303,1.38,2609.7,2609.6,5.02555]
[1729203300804,3.89359162,2609.7,2609.6,5.02555]
[1729203301004,4.43747543,2609.7,2609.6,5.02555]
[1729203301208,4.43747543,2609.7,2609.6,1.19355]
[1729203301597,1.92388381,2609.7,2609.6,1.19355]
[1729203301801,4.43747543,2609.7,2609.6,1.19355]
[1729203302102,3.05747543,2609.7,2609.6,2.57355]
[1729203302813,0.54388381,2609.7,2609.6,2.57355]
[1729203303311,3.05747543,2609.7,2609.6,2.57355]
[1729203304212,3.05747543,2609.7,2609.6,1.19355]
[1729203306007,4.43747543,2609.7,2609.6,0.38325]
[1729203306212,4.82071543,2609.7,2609.6,0.38325]
[1729203306419,1.92388381,2609.7,2609.6,0.38325]
[1729203306717,0.54388381,2609.8,2609.5,1.38]
[1729203306908,1.92388381,2609.8,2609.7,0.38324]
[1729203307402,1.92388381,2609.8,2609.7,0.78944]
[1729203307811,0.54388381,2609.8,2609.7,0.78944]
[1729203308013,1.92388381,2609.8,2609.7,0.78944]
[1729203308412,0.54388381,2609.8,2609.7,0.38324]
[1729203308615,1.92388381,2609.8,2609.7,0.38324]
[1729203314615,4.43634389,2609.8,2609.7,0.38324]
[1729203314809,4.81956389,2609.8,2609.7,0.38324]
[1729203315119,13.13588381,2609.8,2608.9,1.00024735]
[1729203315321,1.38,2609.0,2608.7,1.91666347]
[1729203315516,0.54388381,2609.1,2609.0,0.38334]
[1729203315820,5.63829995,2609.1,2609.0,0.38334]
[1729203316128,3.12528381,2609.1,2609.0,0.38334]
[1729203316313,3.12528381,2609.1,2609.0,0.81164]
[1729203317829,0.54388381,2609.1,2609.0,2.19164]
[1729203318117,2.92741614,2609.3,2609.2,0.38331]
[1729203318322,0.54375611,2609.3,2609.2,0.38331]
[1729203320920,0.54375611,2609.3,2609.2,1.76331]
[1729203321112,2.51301614,2609.7,2609.2,11.2128]
[1729203321319,4.84097605,2609.8,2609.7,0.38324]
[1729203324031,5.26577605,2609.8,2609.7,0.38324]
[1729203325929,2.32795991,2609.8,2609.7,0.38324]
[1729203326119,1.92355991,2609.8,2609.7,0.38324]
[1729203326319,1.92355991,2609.8,2609.7,0.79584]
[1729203327629,1.92355991,2609.8,2609.7,2.71176903]
[1729203335130,1.92355991,2609.8,2609.7,1.91592903]
[1729203335131,3.30355991,2609.8,2609.7,1.91592903]
[1729203335334,3.30355991,2609.8,2609.1,0.4104]
[1729203335335,0.38329,2609.4,2609.1,0.4104]
[1729203335540,1.38,2609.2,2609.1,0.38333]
[1729203340024,1.76331,2609.2,2609.1,0.38333]
[1729203340421,1.38,2609.2,2609.1,0.38333]
[1729203341731,1.76331,2609.2,2609.1,0.38333]
[1729203342928,11.2128,2609.2,2608.8,0.8231]
[1729203343134,0.38335,2609.0,2608.9,0.38335]
[1729203343525,0.38333,2609.1,2609.0,0.38333]
[1729203344235,0.54355991,2609.2,2609.0,1.38]
[1729203344543,0.54355991,2609.2,2609.1,2.15153]
[1729203344731,1.92355991,2609.3,2609.1,2.15153]
[1729203344934,1.38,2609.2,2609.1,2.15153]
[1729203346336,1.38,2609.2,2609.1,0.77153]
[1729203347531,1.38,2609.2,2609.1,2.15153]
[1729203347929,1.38,2609.2,2609.1,0.77153]
[1729203349843,1.38,2609.2,2609.1,2.15153]
[1729203350932,1.38,2609.2,2609.1,0.77153]
[1729203355241,1.255,2609.2,2609.1,0.77153]
[1729203357742,1.38,2609.3,2609.2,0.38331]
[1729203357942,1.38,2609.3,2609.2,0.79821]
[1729203358643,0.54332893,2609.4,2609.3,0.3833]
[1729203358838,3.88942312,2609.8,2609.7,0.38324]
[1729203359035,1.38,2609.8,2609.7,0.38324]
[1729203359444,1.76322,2609.8,2609.7,0.38324]
[1729203359644,1.38,2609.8,2609.7,0.38324]
[1729203360146,1.76322,2609.8,2609.7,0.38324]
[1729203360341,1.38,2609.8,2609.7,0.38324]
[1729203360537,1.76322,2609.8,2609.7,0.38324]
[1729203360935,0.38324,2609.7,2609.6,0.38324]
[1729203361145,2.58134,2609.7,2609.6,0.38324]
[1729203361740,2.1981,2609.7,2609.6,0.38324]
[1729203363444,2.58134,2609.7,2609.6,0.38324]
[1729203363655,2.1981,2609.7,2609.6,0.38324]
[1729203365951,2.58134,2609.7,2609.6,0.38324]
[1729203366250,2.58135,2609.7,2609.6,0.38325]
[1729203366648,0.38326,2609.6,2609.2,4.58097]
[1729203366950,0.81236,2609.6,2609.5,0.38326]
[1729203367155,0.4291,2609.6,2609.5,0.38326]
[1729203368051,1.8091,2609.6,2609.5,0.38326]
[1729203368949,2.34018012,2609.6,2609.5,0.38326]
[1729203371161,2.72343012,2609.6,2609.5,0.38326]
[1729203371456,3.65143012,2609.6,2609.5,0.38326]
[1729203372151,3.65143012,2609.6,2609.2,0.4149]
[1729203372152,7.85598012,2609.6,2609.2,0.4149]
[1729203372341,0.38335,2609.0,2608.8,0.38336]
[1729203372546,0.38335,2609.0,2608.8,0.38337]
[1729203372547,3.10266,2608.9,2608.8,0.38337]
[1729203372750,3.63374012,2608.9,2608.8,0.38337]
[1729203372945,3.63374012,2608.9,2608.7,2.30003347]
[1729203373153,1.38,2608.8,2608.7,2.30003347]
[1729203374044,1.76337,2608.8,2608.7,2.30003347]
[1729203374362,12.97697,2608.8,2608.7,1.91666347]
[1729203374542,0.38342,2608.5,2608.3,0.38344]
[1729203374745,1.7913,2608.4,2608.3,0.38344]
[1729203374946,2.17474,2608.4,2608.2,0.38345]
[1729203375154,1.38,2608.3,2608.2,0.38346]
[1729203376153,4.5878,2608.7,2608.6,0.3834]
[1729203376452,1.38,2608.7,2608.6,0.3834]
[1729203376845,1.38,2608.7,2608.6,0.7741]
[1729203377856,0.929,2608.9,2608.6,0.7741]
[1729203377857,3.919,2608.9,2608.8,0.38337]
[1729203378449,3.919,2608.9,2608.4,0.7884]
[1729203378450,0.38339,2608.7,2608.5,0.38341]
[1729203378651,0.4001,2608.6,2608.4,0.38343]
[1729203378858,0.4001,2608.6,2608.2,3.2078]
[1729203378859,2.99,2608.5,2608.2,3.2078]
[1729203379048,1.31243,2608.4,2608.2,3.59125]
[1729203379457,0.929,2608.4,2608.3,0.38344]
[1729203379752,1.31243,2608.4,2608.2,0.38345]
[1729203380156,0.929,2608.4,2608.2,0.38345]
[1729203380655,2.99,2608.3,2608.0,0.7829]
[1729203380955,3.37347,2608.1,2607.5,1.96122292]
[1729203381153,0.4001,2608.0,2607.9,0.3835]
[1729203383558,0.8085,2608.3,2607.7,0.3871]
[1729203383559,3.7985,2608.3,2607.7,0.3871]
[1729203383757,3.8197,2608.3,2607.7,0.3871]
[1729203384054,0.929,2608.2,2608.1,0.38347]
[1729203385558,0.929,2608.2,2607.9,0.38349]
[1729203385559,0.38348,2608.1,2607.9,0.38349]
[1729203385853,0.38347,2608.1,2608.0,0.38348]
[1729203386763,0.929,2608.2,2608.1,0.38347]
[1729203387259,0.929,2608.2,2607.7,0.3871]
[1729203387453,1.31247,2608.2,2608.0,0.38348]
[1729203387755,0.929,2608.2,2608.1,0.38347]
[1729203388056,1.31246,2608.2,2608.1,0.38347]
[1729203388255,3.4012,2608.3,2607.7,0.3871]
[1729203388466,0.929,2608.2,2608.1,0.38346]
[1729203389861,3.4012,2608.3,2607.7,0.3871]
[1729203390051,2.99,2608.2,2608.1,0.38347]
[1729203393759,3.37346,2608.2,2607.6,1.37795]
[1729203393950,2.99,2608.0,2607.9,0.38349]
[1729203395554,3.37349,2608.0,2607.7,0.4032]
[1729203395762,3.37352,2607.8,2607.7,0.4032]
[1729203395951,3.37352,2607.8,2607.7,0.38353]
[1729203395952,3.919,2607.8,2607.7,0.38353]
[1729203397254,3.919,2607.8,2607.5,0.4032]
[1729203397255,3.919,2607.8,2607.6,0.38354]
[1729203397858,0.38353,2607.7,2607.6,0.38354]
[1729203398062,4.3158,2607.8,2607.6,0.38354]
[1729203398463,0.38353,2607.7,2607.6,0.38354]
[1729203399257,4.69933,2607.8,2607.6,0.38354]
[1729203399457,7.5236,2607.8,2607.5,0.4032]
[1729203399659,3.37355,2607.6,2607.5,0.78676]
[1729203399863,3.37355,2607.6,2607.5,0.4032]
[1729203400062,3.37355,2607.6,2607.5,0.78676]
[1729203400956,3.37355,2607.6,2607.5,0.4032]
[1729203401168,3.37355,2607.6,2607.3,0.79648]
[1729203401169,0.38357,2607.5,2607.3,0.79648]
[1729203401350,0.38357,2607.5,2607.4,0.38358]
[1729203401755,0.38362,2607.2,2607.0,0.4241]
[1729203402062,0.3836,2607.3,2607.2,0.3836]
[1729203402260,2.99,2607.3,2607.2,0.3836]
[1729203402460,0.38359,2607.3,2607.2,0.3836]
[1729203402863,0.38361,2607.2,2607.1,0.38361]
[1729203403058,2.99,2607.2,2607.1,0.38362]
[1729203403561,2.99,2607.2,2607.1,0.78782]
[1729203405362,3.37361,2607.2,2607.1,0.78782]
[1729203405860,2.99,2607.2,2607.1,0.78782]
[1729203412281,7.787,2607.2,2606.7,0.9592]
[1729203412483,1.7886,2607.2,2606.8,1.1967]
[1729203412688,0.38363,2607.1,2607.0,0.38362]
[1729203412889,2.99,2607.1,2607.0,0.38362]
[1729203413592,3.951,2607.3,2607.2,0.38361]
[1729203417795,3.721,2607.3,2607.2,0.38361]
[1729203419698,2.341,2607.3,2607.2,0.38361]
[1729203425401,1.38,2607.3,2607.2,0.38361]
[1729203425604,1.38,2607.3,2607.1,0.38362]
[1729203425790,0.961,2607.5,2607.2,0.844]
[1729203425994,1.38,2607.3,2607.2,1.22761]
[1729203427288,2.76,2607.3,2607.2,0.80421]
[1729203428401,1.38,2607.3,2607.2,0.80421]
[1729203428901,1.76359,2607.3,2607.2,0.80421]
[1729203429101,3.14359,2607.3,2607.2,0.80421]
[1729203429607,1.76359,2607.3,2607.2,0.80421]
[1729203429906,3.14359,2607.3,2607.2,0.80421]
[1729203430398,3.14359,2607.3,2607.2,0.38361]
[1729203430598,0.38363,2607.1,2607.0,0.38363]
[1729203430799,1.76363,2607.1,2607.0,0.38363]
[1729203430999,1.38,2607.1,2606.9,0.4066]
[1729203431207,1.76364,2607.0,2606.9,0.38364]
[1729203431795,1.38,2607.0,2606.9,0.38364]
[1729203432107,1.76364,2607.0,2606.9,0.38364]
[1729203434201,0.53160351,2607.1,2607.0,0.38364]
[1729203434397,0.38364,2607.0,2606.9,0.38364]
[1729203434602,1.76364,2607.0,2606.9,0.38364]
[1729203435301,1.38,2607.0,2606.9,0.38364]
[1729203436006,0.38365,2606.9,2606.8,0.38366]
[1729203436214,2.16995,2606.9,2606.8,0.38366]
[1729203436406,1.7863,2606.9,2606.8,0.38366]
[1729203436605,2.70184689,2606.9,2606.8,0.38366]
[1729203436802,2.16995,2606.9,2606.8,0.38366]
[1729203437101,2.7413,2606.9,2606.8,0.38366]
[1729203437297,3.27318213,2606.9,2606.8,0.38366]
[1729203439502,2.7413,2606.9,2606.8,0.38366]
[1729203440314,3.12495,2606.9,2606.8,0.38366]
[1729203440506,3.27374573,2606.9,2606.8,0.38366]
[1729203440706,2.7413,2606.9,2606.8,0.38366]
[1729203441208,3.27391523,2606.9,2606.8,0.38366]
[1729203441903,1.91261523,2606.9,2606.8,0.38366]
[1729203442101,1.38,2607.1,2606.8,14.4238]
[1729203442300,3.46439712,2607.2,2606.8,4.5878]
[1729203442301,1.38,2607.0,2606.8,4.5878]
[1729203442509,1.38,2606.9,2606.8,4.97146]
[1729203442906,1.38,2606.9,2606.8,14.80746]
[1729203444810,1.38,2606.9,2606.8,3.59146]
[1729203445117,1.38,2606.9,2606.8,4.21966]
[1729203445320,1.38,2606.9,2606.8,1.38598292]
[1729203446311,1.38,2606.9,2606.8,0.38366]
[1729203457731,1.38,2606.9,2606.8,1.38598292]
[1729203458131,1.38,2607.0,2606.9,0.38365]
[1729203462832,1.38,2607.0,2606.8,2.38232292]
[1729203463027,1.38,2607.0,2606.9,0.38365]
[1729203465035,1.38,2607.0,2606.9,1.38597292]
[1729203467428,1.38,2607.0,2606.9,2.68975459]
[1729203468833,1.38,2607.0,2606.9,1.38597292]
[1729203470625,1.38,2607.0,2606.9,2.68967102]
[1729203471338,1.38,2607.0,2606.9,4.06969171]
[1729203471544,1.38,2607.1,2606.9,3.68604171]
[1729203471729,1.38,2607.1,2607.0,1.76364]
[1729203471931,1.38,2607.1,2607.0,1.38596292]
[1729203473437,1.38,2607.1,2607.0,0.38364]
[1729203474732,1.38,2607.1,2607.0,0.79804]
[1729203474931,1.38,2607.1,2607.0,1.80036292]
[1729203475231,1.38,2607.1,2607.0,0.79804]
[1729203475729,0.53262255,2607.2,2607.1,0.38362]
[1729203475937,0.53262255,2607.5,2607.4,0.38358]
[1729203476139,1.38,2607.5,2607.4,0.38358]
[1729203479039,6.22115542,2608.0,2607.4,8.829]
[1729203479247,4.145,2609.2,2607.4,8.829]
[1729203479248,1.38,2609.0,2607.9,5.9678]
[1729203479540,0.4049,2609.1,2608.8,1.38]
[1729203479842,1.38,2608.9,2608.8,0.38337]
[1729203481437,1.38,2608.9,2608.6,1.91673694]
[1729203481644,1.76339,2608.7,2608.6,1.91673694]
[1729203481938,5.88132804,2608.7,2608.4,0.38342]
[1729203482142,3.2078,2608.5,2608.4,0.38343]
[1729203482338,2.50793804,2608.6,2608.0,0.95873]
[1729203482339,5.49793804,2608.7,2608.5,0.38341]
[1729203482544,5.49793804,2608.7,2608.1,0.4234]